bitfinex-derivatives/quotes_BTCF0:USTF0_20210111
["timestamp","ask_amount","ask_price","bid_price","bid_amount"]
[1610369138719,0.13632608,34672.0,34657.0,0.00039525]
[1610369138918,0.13632608,34672.0,34657.0,0.10348]
[1610369139319,0.11261,34690.0,34657.0,0.10348]
[1610369139519,0.83210117,34687.0,34657.0,0.10348]
[1610369139920,0.11261,34690.0,34657.0,0.10348]
[1610369139921,0.83118803,34685.0,34657.0,0.10348]
[1610369140323,0.13632608,34658.0,34657.0,0.10348]
[1610369140723,0.13632608,34658.0,34657.0,0.10172079]
[1610369143725,0.03,34668.0,34657.0,0.10172079]
[1610369143927,0.03,34668.0,34653.0,0.13632608]
[1610369144325,0.03,34668.0,34667.0,0.13632608]
[1610369145125,1.26487173,34703.0,34667.0,0.13632608]
[1610369145126,0.8384129,34697.0,34667.0,0.13632608]
[1610369145324,0.8384129,34697.0,34667.0,0.13671408]
[1610369145527,0.83954489,34699.0,34668.0,0.00038798]
[1610369145926,0.83936685,34697.0,34665.0,0.09647]
[1610369146327,0.2932,34702.0,34665.0,0.09647]
[1610369146328,0.13632608,34666.0,34665.0,0.09647]
[1610369146527,0.13632608,34666.0,34645.0,0.1046]
[1610369146731,0.10534,34680.0,34615.0,0.0866]
[1610369146929,0.10534,34680.0,34646.0,0.00038823]
[1610369147128,0.10534,34680.0,34646.0,0.10228]
[1610369147329,0.2915,34679.0,34656.0,3.2829]
[1610369147528,0.10534,34680.0,34656.0,3.2829]
[1610369147729,0.10534,34680.0,34657.0,0.00038821]
[1610369148329,0.10534,34680.0,34676.0,0.13632608]
[1610369148535,0.10534,34680.0,34657.0,0.00038821]
[1610369148743,0.83503592,34692.0,34673.0,0.1096]
[1610369149535,0.83472496,34690.0,34673.0,0.1096]
[1610369149943,0.83426476,34689.0,34656.0,3.3792]
[1610369150133,0.93240476,34689.0,34656.0,0.0963]
[1610369150330,0.83377231,34687.0,34666.0,0.13632608]
[1610369150733,0.83264791,34685.0,34666.0,0.13456688]
[1610369151135,0.83264791,34685.0,34656.0,0.0963]
[1610369151739,0.82988119,34684.0,34656.0,0.0963]
[1610369152136,0.82839065,34681.0,34657.0,0.00038828]
[1610369152334,0.13632608,34658.0,34657.0,0.00038828]
[1610369152958,0.08544,34673.0,34657.0,0.00038828]
[1610369153144,0.10558,34681.0,34657.0,0.00038828]
[1610369153932,0.92578553,34689.0,34657.0,0.03558384]
[1610369154333,0.09814,34689.0,34680.0,0.13632608]
[1610369154532,0.09814,34689.0,34681.0,0.00038811]
[1610369155133,0.09814,34689.0,34673.0,0.00038815]
[1610369155333,0.08094,34696.0,34682.0,0.00038817]
[1610369155534,0.08094,34696.0,34672.0,0.11211]
[1610369155535,0.08094,34696.0,34674.0,0.00038817]
[1610369155733,0.08112,34696.0,34674.0,0.00038817]
[1610369155936,0.08112,34696.0,34683.0,0.00038817]
[1610369156134,0.08112,34696.0,34675.0,0.00038817]
[1610369156335,0.08112,34696.0,34672.0,0.11211]
[1610369156336,0.08112,34696.0,34686.0,0.13632608]
[1610369156534,0.08112,34696.0,34687.0,0.00038817]
[1610369156735,0.08112,34696.0,34686.0,0.04877591]
[1610369157536,0.08112,34696.0,34672.0,0.11211]
[1610369157936,0.91202442,34696.0,34673.0,0.03558837]
[1610369158135,0.91202442,34696.0,34673.0,0.00038815]
[1610369158336,0.13632608,34674.0,34673.0,0.00038815]
[1610369158538,0.13632608,34674.0,34672.0,0.11211]
[1610369158736,0.13632608,34674.0,34673.0,0.00038817]
[1610369159537,0.13632608,34674.0,34672.0,0.00038822]
[1610369159737,0.21819608,34674.0,34673.0,0.00038825]
[1610369160339,0.21819608,34674.0,34617.0,0.0853]
[1610369160340,0.21819608,34674.0,34657.0,0.03521199]
[1610369160539,0.21819608,34674.0,34673.0,0.00038828]
[1610369160939,0.21819608,34674.0,34658.0,0.03384054]
[1610369161140,0.21819608,34674.0,34644.0,0.13632608]
[1610369161141,0.21819608,34674.0,34648.0,0.03521189]
[1610369161339,0.21819608,34674.0,34659.0,0.03560239]
[1610369161539,0.83358168,34673.0,34659.0,0.03560239]
[1610369161739,0.83358168,34673.0,34649.0,0.0356027]
[1610369161939,0.21819608,34674.0,34639.0,0.08527]
[1610369161940,0.83347652,34671.0,34660.0,0.0003881]
[1610369162139,0.83347652,34671.0,34650.0,0.03560592]
[1610369162340,0.13632608,34651.0,34643.0,0.13632608]
[1610369162740,0.13632608,34651.0,34650.0,0.03560427]
[1610369162939,0.13632608,34651.0,34644.0,0.03560409]
[1610369163555,0.13632608,34651.0,34645.0,0.00038814]
[1610369163947,0.13632608,34651.0,34644.0,0.03560413]
[1610369164343,0.0998,34661.0,34646.0,0.00038814]
[1610369164543,0.0998,34661.0,34645.0,0.00038814]
[1610369164747,0.0998,34661.0,34647.0,0.00038818]
[1610369165155,0.0998,34661.0,34641.0,0.0003882]
[1610369165355,0.0998,34661.0,34640.0,0.03561449]
[1610369165559,0.0998,34661.0,34642.0,0.00038822]
[1610369165955,0.0998,34661.0,34640.0,0.03561447]
[1610369166151,0.0998,34661.0,34643.0,0.0003882]
[1610369166358,0.13632608,34644.0,34641.0,0.00038823]
[1610369166765,0.13632608,34644.0,34640.0,0.02341452]
[1610369166970,0.13632608,34644.0,34576.0,0.2793]
[1610369167149,0.13632608,34644.0,34570.0,0.17618268]
[1610369167150,0.23524608,34644.0,34570.0,0.17618268]
[1610369167550,1.00500786,34643.0,34577.0,0.03563472]
[1610369167750,1.00500786,34643.0,34575.0,0.03563995]
[1610369167949,0.71896648,34636.0,34600.0,6.6278]
[1610369168149,0.82905648,34636.0,34556.0,0.07050555]
[1610369168351,0.13632608,34573.0,34567.0,0.13632608]
[1610369168551,0.11018,34609.0,34567.0,0.13632608]
[1610369168755,0.11018,34609.0,34568.0,0.03565274]
[1610369169354,0.11018,34609.0,34568.0,0.00038639]
[1610369169551,0.11018,34609.0,34569.0,0.00038647]
[1610369170151,0.11018,34609.0,34568.0,0.00038647]
[1610369170551,0.11018,34609.0,34568.0,0.03565479]
[1610369170951,0.11018,34609.0,34568.0,0.00038647]
[1610369172355,0.11018,34609.0,34590.0,0.13632608]
[1610369172957,0.11018,34609.0,34591.0,0.00038643]
[1610369173556,4.0575,34620.0,34585.0,0.08415]
[1610369174859,4.0575,34620.0,34586.0,0.00038645]
[1610369175060,4.0575,34620.0,34585.0,0.08415]
[1610369175462,4.0575,34620.0,34586.0,0.00038639]
[1610369175662,4.0575,34620.0,34585.0,0.08415]
[1610369176261,0.13632608,34593.0,34585.0,0.08415]
[1610369177663,0.13632608,34593.0,34567.0,0.08573]
[1610369177863,0.13632608,34593.0,34525.0,0.0705642]
[1610369178265,0.13632608,34576.0,34574.0,0.13632608]
[1610369178863,0.09226,34600.0,34574.0,0.13632608]
[1610369179066,0.09226,34600.0,34574.0,0.23528608]
[1610369180266,0.13632608,34575.0,34574.0,0.09896]
[1610369181266,0.13632608,34575.0,34565.0,4.5629]
[1610369182269,0.13632608,34566.0,34565.0,4.5629]
[1610369182870,0.13632608,34566.0,34565.0,4.56113519]
[1610369183069,0.13632608,34566.0,34546.0,4.3959]
[1610369184271,0.13632608,34547.0,34546.0,4.3959]
[1610369184670,0.08676,34571.0,34546.0,4.3959]
[1610369184871,0.2747,34585.0,34546.0,4.50259]
[1610369185270,0.2747,34585.0,34546.0,0.10669]
[1610369186170,0.2747,34585.0,34547.0,0.00038676]
[1610369186372,0.2747,34585.0,34577.0,0.13632608]
[1610369186570,0.2747,34585.0,34577.0,0.23032608]
[1610369186773,0.2747,34585.0,34577.0,0.094]
[1610369187773,0.2747,34585.0,34570.0,0.08478]
[1610369188375,0.13632608,34571.0,34570.0,0.08478]
[1610369188976,0.2747,34585.0,34570.0,0.08478]
[1610369189780,0.2747,34585.0,34571.0,0.00038692]
[1610369191585,0.2747,34585.0,34570.0,0.08478]
[1610369191779,0.37804,34585.0,34562.0,0.1123]
[1610369192382,0.13632608,34570.0,34569.0,0.13632608]
[1610369192782,0.13632608,34570.0,34562.0,0.1123]
[1610369193681,0.13632608,34570.0,34556.0,4.3278]
[1610369194483,0.13632608,34557.0,34556.0,4.3278]
[1610369195282,0.08409,34578.0,34556.0,4.32818715]
[1610369195482,0.08409,34578.0,34556.0,4.41165715]
[1610369195781,0.08409,34578.0,34557.0,0.00038708]
[1610369195983,0.37804,34585.0,34557.0,0.00038708]
[1610369196383,0.37804,34585.0,34577.0,0.13632608]
[1610369196984,0.37804,34585.0,34578.0,0.00038699]
[1610369197182,3.81734,34585.0,34577.0,0.13494866]
[1610369197385,0.10334,34585.0,34577.0,0.13494866]
[1610369197583,0.09825,34596.0,34577.0,0.13494866]
[1610369197983,0.09825,34596.0,34571.0,0.10625]
[1610369198386,0.13632608,34572.0,34571.0,0.10625]
[1610369198785,0.13632608,34572.0,34571.0,0.10663702]
[1610369199185,0.13632608,34572.0,34571.0,0.00038702]
[1610369199586,0.13632608,34572.0,34557.0,0.00038802]
[1610369199786,0.13632608,34572.0,34571.0,0.00038802]
[1610369200188,0.13632608,34572.0,34567.0,0.07884]
[1610369200387,0.10678,34588.0,34571.0,0.00038802]
[1610369200587,0.10678,34588.0,34568.0,0.00038802]
[1610369200788,0.10678,34588.0,34572.0,0.00038802]
[1610369201187,0.10678,34588.0,34569.0,0.00038802]
[1610369201387,0.10678,34588.0,34573.0,3e-08]
[1610369201588,0.10678,34588.0,34570.0,0.00038807]
[1610369201988,0.10678,34588.0,34557.0,0.00038579]
[1610369202189,0.10678,34588.0,34556.0,0.08347]
[1610369202388,0.13632608,34557.0,34546.0,0.10669]
[1610369202591,0.13632608,34557.0,34531.0,0.13632608]
[1610369202989,0.13632608,34557.0,34532.0,0.03573768]
[1610369203191,0.13632608,34557.0,34532.0,0.11561768]
[1610369203590,0.13632608,34557.0,34533.0,0.00038623]
[1610369203789,0.13632608,34557.0,34533.0,0.03573985]
[1610369204390,0.2769,34568.0,34533.0,0.03573985]
[1610369204391,0.13632608,34534.0,34533.0,0.00038623]
[1610369205093,0.13632608,34534.0,34533.0,0.03574513]
[1610369207191,0.64392608,34534.0,34533.0,0.00038623]
[1610369207391,0.64392608,34534.0,34533.0,0.00038655]
[1610369207792,0.64392608,34534.0,34488.0,0.03538309]
[1610369207993,0.64392608,34534.0,34463.0,0.2976]
[1610369207994,0.64392608,34534.0,34476.0,0.03577374]
[1610369208193,0.64392608,34534.0,34489.0,0.03577772]
[1610369208395,0.13632608,34490.0,34489.0,0.11285772]
[1610369208593,0.13632608,34490.0,34489.0,0.07708]
[1610369208994,0.13632608,34490.0,34489.0,0.11285638]
[1610369209595,0.09206,34525.0,34489.0,0.11285638]
[1610369209795,0.09206,34525.0,34490.0,0.03577971]
[1610369210397,0.13632608,34491.0,34490.0,0.00038437]
[1610369210596,0.09206,34525.0,34491.0,0.0003844]
[1610369210997,0.5759,34533.0,34491.0,0.0003844]
[1610369211197,0.5759,34533.0,34490.0,0.0003844]
[1610369211398,0.5076,34534.0,34492.0,0.00038437]
[1610369211598,0.5076,34534.0,34490.0,0.03577899]
[1610369211997,0.5076,34534.0,34493.0,0.00038437]
[1610369212199,0.5076,34534.0,34491.0,0.00038435]
[1610369212398,0.5076,34534.0,34515.0,0.13632608]
[1610369212600,0.5076,34534.0,34515.0,0.20557608]
[1610369212998,0.5076,34534.0,34516.0,0.00038431]
[1610369213800,0.5076,34534.0,34515.0,0.20557608]
[1610369213801,0.5076,34534.0,34517.0,0.00038428]
[1610369214399,0.5076,34534.0,34522.0,0.13632608]
[1610369214800,0.5076,34534.0,34515.0,0.06925]
[1610369215303,0.5076,34534.0,34516.0,0.00038429]
[1610369216101,3.96149,34544.0,34516.0,0.00038429]
[1610369216501,0.13632608,34517.0,34516.0,0.00038429]
[1610369217302,0.13632608,34517.0,34515.0,0.06925]
[1610369217503,0.13632608,34517.0,34515.0,0.06748241]
[1610369217703,0.13632608,34517.0,34491.0,3.4204]
[1610369218102,0.13632608,34517.0,34492.0,0.00038429]
[1610369218503,0.0965,34528.0,34503.0,0.13632608]
[1610369218704,0.0965,34528.0,34503.0,0.22672608]
[1610369218905,0.0965,34528.0,34504.0,0.00038432]
[1610369220508,0.13632608,34505.0,34504.0,0.00038432]
[1610369220705,0.13632608,34505.0,34503.0,0.22672608]
[1610369221106,0.0965,34528.0,34503.0,0.22672608]
[1610369221709,0.0965,34528.0,34504.0,0.00038421]
[1610369221906,0.2884,34536.0,34504.0,0.00038421]
[1610369222106,0.2884,34536.0,34503.0,0.22672608]
[1610369222306,0.2884,34536.0,34505.0,0.00038416]
[1610369222507,0.2884,34536.0,34525.0,0.13632608]
[1610369222906,4.78023293,34544.0,34523.0,0.10873]
[1610369223109,3.96149,34544.0,34523.0,0.02037231]
[1610369223709,0.15903265,34543.0,34523.0,0.02037231]
[1610369224109,3.96149,34544.0,34523.0,0.02037231]
[1610369224310,3.96149,34544.0,34524.0,0.00038401]
[1610369224510,8.14602,34551.0,34543.0,0.13632608]
[1610369224718,0.92405608,34567.0,34538.0,0.11227]
[1610369225111,1.44022885,34572.0,34539.0,0.00038385]
[1610369225112,1.21026951,34572.0,34539.0,0.00038385]
[1610369225310,0.92506951,34572.0,34539.0,0.00038385]
[1610369225511,0.92719633,34574.0,34539.0,0.00038385]
[1610369225911,0.92675262,34575.0,34539.0,0.00038385]
[1610369226211,1.45623099,34584.0,34539.0,0.00038385]
[1610369226212,0.92637198,34578.0,34539.0,0.00038385]
[1610369226512,0.13632608,34565.0,34564.0,0.13632608]
[1610369226712,0.09277,34576.0,34564.0,0.13632608]
[1610369227312,0.09277,34576.0,34565.0,0.00038365]
[1610369227912,0.92398441,34585.0,34565.0,0.00038365]
[1610369228113,0.82332934,34581.0,34564.0,0.13494499]
[1610369228314,0.822413,34582.0,34561.0,0.09274]
[1610369228525,0.822413,34582.0,34562.0,0.00038355]
[1610369228712,0.82083091,34577.0,34562.0,0.00038355]
[1610369229122,0.81923726,34574.0,34562.0,0.00038355]
[1610369229539,0.81839157,34572.0,34562.0,0.00038355]
[1610369229727,0.92027157,34572.0,34555.0,0.0003836]
[1610369229922,0.81641772,34565.0,34548.0,3.3192]
[1610369230146,0.92910772,34565.0,34548.0,3.3192]
[1610369230324,0.81581503,34560.0,34548.0,3.3192]
[1610369230532,0.13632608,34549.0,34548.0,3.3192]
[1610369231126,0.13632608,34549.0,34519.0,4.4523]
[1610369231532,0.13632608,34549.0,34524.0,0.00038379]
[1610369231723,0.13632608,34549.0,34520.0,0.00038382]
[1610369231939,0.13632608,34549.0,34525.0,0.0003838]
[1610369232318,0.13632608,34549.0,34521.0,0.0003838]
[1610369232524,0.09584,34550.0,34541.0,0.13632608]
[1610369232726,0.09584,34550.0,34542.0,0.0003838]
[1610369233214,0.09584,34550.0,34532.0,0.0003838]
[1610369233615,0.09584,34550.0,34543.0,0.00038378]
[1610369233816,0.09584,34550.0,34533.0,0.00038378]
[1610369234016,0.09584,34550.0,34544.0,0.00038378]
[1610369234416,0.09584,34550.0,34534.0,0.00038378]
[1610369234616,0.09584,34550.0,34545.0,0.00038378]
[1610369234816,0.09584,34550.0,34535.0,0.00038378]
[1610369235217,0.09584,34550.0,34546.0,0.00038378]
[1610369235416,0.09584,34550.0,34536.0,0.00038378]
[1610369235617,0.09584,34550.0,34531.0,0.10616]
[1610369235816,0.92041271,34554.0,34531.0,0.10616]
[1610369236020,0.92046637,34552.0,34537.0,0.00038379]
[1610369236217,0.92046637,34552.0,34532.0,0.00038379]
[1610369236417,0.92168759,34551.0,34538.0,0.00038379]
[1610369236818,0.92378408,34555.0,34537.0,0.13632608]
[1610369237017,0.92378408,34555.0,34539.0,0.00038377]
[1610369237219,0.92378408,34555.0,34539.0,0.09507]
[1610369237618,0.92651131,34559.0,34540.0,0.00038372]
[1610369237819,0.92877213,34563.0,34540.0,0.00038372]
[1610369238217,0.92990999,34566.0,34540.0,0.00038372]
[1610369238621,0.92990999,34566.0,34565.0,0.13632608]
[1610369238819,0.93220094,34569.0,34565.0,0.13632608]
[1610369239018,0.93220094,34569.0,34565.0,0.21273608]
[1610369239221,0.93096154,34571.0,34565.0,0.21273608]
[1610369239620,0.93222105,34572.0,34565.0,0.03625045]
[1610369239830,0.93320602,34576.0,34565.0,0.03448569]
[1610369240025,0.9332068,34575.0,34565.0,0.03448569]
[1610369240421,1.46637262,34584.0,34565.0,0.03448569]
[1610369240422,0.93398245,34572.0,34566.0,0.0003836]
[1610369240622,0.13632608,34567.0,34566.0,0.0003836]
[1610369241224,0.13632608,34567.0,34565.0,0.03448569]
[1610369241522,1.06898134,34567.0,34565.0,0.03410209]
[1610369242623,1.5606584,34566.0,34564.0,0.13632608]
[1610369242827,0.83012685,34566.0,34539.0,0.09507]
[1610369243041,0.83012685,34566.0,34533.0,4.2421]
[1610369243423,0.82761861,34559.0,34540.0,0.0003836]
[1610369243623,0.82761861,34559.0,34534.0,0.03571199]
[1610369243827,0.82674418,34556.0,34541.0,0.00038362]
[1610369244124,0.82613834,34553.0,34535.0,0.00038367]
[1610369244326,0.82613834,34553.0,34542.0,0.00038367]
[1610369244527,0.13632608,34543.0,34542.0,0.08059367]
[1610369244725,0.13632608,34543.0,34542.0,0.08021]
[1610369244925,0.13632608,34543.0,34542.0,0.08059369]
[1610369246328,0.13632608,34543.0,34542.0,0.00038369]
[1610369246525,0.96226575,34543.0,34542.0,0.00038369]
[1610369246725,0.96226575,34543.0,34522.0,3.8586]
[1610369246726,0.96226575,34543.0,34532.0,0.00038391]
[1610369246927,0.00038369,34537.0,34523.0,0.00038391]
[1610369247128,0.82213656,34533.0,34523.0,0.00038391]
[1610369247327,0.82213656,34533.0,34522.0,3.8586]
[1610369247528,0.82193407,34528.0,34523.0,0.00038394]
[1610369248027,0.82130091,34526.0,34523.0,0.00038394]
[1610369248329,0.82074816,34524.0,34507.0,4.8377]
[1610369248529,0.13632608,34508.0,34498.0,0.13632608]
[1610369249131,0.13632608,34508.0,34499.0,0.03574471]
[1610369249329,0.13632608,34508.0,34499.0,0.09501]
[1610369249730,0.13632608,34508.0,34500.0,0.00038403]
[1610369250531,0.13632608,34501.0,34500.0,0.00038403]
[1610369251130,0.13632608,34501.0,34499.0,0.09501]
[1610369251131,0.13632608,34501.0,34499.0,0.09362627]
[1610369252031,0.81700202,34500.0,34499.0,0.09362627]
[1610369252237,0.81700202,34500.0,34478.0,0.13632608]
[1610369252436,0.81700202,34500.0,34460.0,1.90185]
[1610369252633,0.93090202,34500.0,34460.0,1.90185]
[1610369252836,0.81729408,34496.0,34479.0,0.00038426]
[1610369253034,0.81729408,34496.0,34468.0,0.00038429]
[1610369253234,0.81681721,34493.0,34468.0,0.00038429]
[1610369253434,3.7293,34492.0,34480.0,0.00038431]
[1610369253634,0.81576285,34490.0,34469.0,0.00038433]
[1610369253834,0.81576285,34490.0,34481.0,0.00038436]
[1610369254034,0.81497167,34486.0,34481.0,0.00038436]
[1610369254235,0.81497167,34486.0,34470.0,0.00038439]
[1610369254436,0.81406776,34482.0,34467.0,0.07375]
[1610369254634,0.13632608,34468.0,34467.0,0.07375]
[1610369255034,0.73979212,34478.0,34467.0,0.07375]
[1610369255235,0.71829212,34478.0,34467.0,0.07413447]
[1610369255434,0.11294,34485.0,34468.0,0.00038447]
[1610369255634,0.9130847,34488.0,34468.0,0.00038447]
[1610369255835,0.50449773,34491.0,34467.0,0.07375]
[1610369256035,3.7293,34492.0,34467.0,0.07375]
[1610369256234,3.7293,34492.0,34468.0,0.00038436]
[1610369256635,0.91698289,34504.0,34491.0,0.13632608]
[1610369256837,0.91698289,34504.0,34491.0,0.25030608]
[1610369257038,1.63734081,34516.0,34491.0,0.25030608]
[1610369257039,0.91771433,34507.0,34491.0,0.25030608]
[1610369257348,0.92012152,34512.0,34491.0,0.25030608]
[1610369257754,1.56000013,34522.0,34491.0,0.33660608]
[1610369257953,1.56000013,34522.0,34492.0,1.5]
[1610369258154,4.5268,34523.0,34492.0,1.5]
[1610369258347,1.15321823,34528.0,34493.0,0.00038411]
[1610369258536,1.64738403,34535.0,34493.0,0.00038411]
[1610369258537,1.15680555,34536.0,34493.0,0.00038411]
[1610369258938,1.15793529,34539.0,34493.0,0.00038411]
[1610369259137,1.15793529,34539.0,34492.0,0.00038402]
[1610369259341,1.15793529,34539.0,34494.0,0.00038402]
[1610369259538,0.35248,34548.0,34495.0,0.0864]
[1610369259539,1.15802897,34536.0,34495.0,0.0864]
[1610369259938,1.15802897,34536.0,34496.0,0.000384]
[1610369260138,1.15795038,34538.0,34496.0,0.000384]
[1610369260538,1.15881314,34537.0,34496.0,0.000384]
[1610369260738,1.15881314,34537.0,34526.0,0.13632608]
[1610369260939,1.15881314,34537.0,34526.0,0.23830608]
[1610369261138,1.15881314,34537.0,34526.0,0.10198]
[1610369261339,1.15909062,34535.0,34526.0,0.10198]
[1610369261739,1.15781322,34533.0,34526.0,0.10021295]
[1610369262340,1.15741272,34531.0,34526.0,0.10021295]
[1610369262741,0.13632608,34527.0,34500.0,4.7338]
[1610369263141,1.2904962,34527.0,34491.0,0.11398]
[1610369263341,1.1534087,34523.0,34485.0,0.13632608]
[1610369263541,1.2303687,34523.0,34486.0,0.00038331]
[1610369263741,1.15127475,34518.0,34486.0,0.09869331]
[1610369263940,1.15127475,34518.0,34486.0,0.09831]
[1610369264140,1.14928321,34515.0,34486.0,0.09831]
[1610369264341,1.23210321,34515.0,34486.0,0.09831]
[1610369264548,1.1455621,34510.0,34486.0,0.09831]
[1610369264742,0.13632608,34487.0,34486.0,0.09831]
[1610369264942,0.13632608,34487.0,34483.0,4.6315]
[1610369266946,0.09533,34493.0,34483.0,4.6315]
[1610369267149,1.2356124,34493.0,34467.0,0.07375]
[1610369267347,1.13939607,34492.0,34460.0,1.90185]
[1610369267747,1.23432983,34493.0,34460.0,1.90185]
[1610369268154,0.91003875,34482.0,34460.0,1.97508]
[1610369268447,0.90957194,34484.0,34460.0,1.97508]
[1610369268648,0.13632608,34461.0,34460.0,1.97508]
[1610369269849,0.90909786,34485.0,34460.0,1.97508]
[1610369270250,0.908757,34489.0,34460.0,1.97508]
[1610369270649,0.91128301,34491.0,34467.0,0.13632608]
[1610369270849,0.91128301,34491.0,34467.0,0.22382608]
[1610369271050,0.91128301,34491.0,34467.0,0.0875]
[1610369271450,0.91325642,34490.0,34467.0,0.0875]
[1610369272252,1.42931484,34496.0,34467.0,0.0875]
[1610369272253,0.91430026,34491.0,34467.0,0.08573081]
[1610369272451,0.91490857,34495.0,34467.0,0.08573081]
[1610369272651,0.13632608,34468.0,34467.0,0.08573081]
[1610369273252,0.9151364,34494.0,34467.0,0.08573081]
[1610369273451,0.91505101,34495.0,34467.0,0.08573081]
[1610369273851,0.91505101,34495.0,34468.0,0.00036388]
[1610369274053,0.2867,34496.0,34468.0,0.00036388]
[1610369274253,0.99233157,34502.0,34468.0,0.00036388]
[1610369274452,0.99233157,34502.0,34468.0,0.08746388]
[1610369274652,0.07636,34502.0,34468.0,0.00036388]
[1610369274853,0.13632608,34501.0,34485.0,0.13632608]
[1610369275652,0.08282,34515.0,34486.0,0.00036368]
[1610369275853,0.08282,34515.0,34486.0,0.10467368]
[1610369276254,0.08282,34515.0,34487.0,0.00036368]
[1610369276453,0.0877,34509.0,34487.0,0.00036368]
[1610369276653,0.91973467,34518.0,34487.0,0.00036368]
[1610369276853,0.13632608,34500.0,34499.0,0.13632608]
[1610369277053,0.13632608,34500.0,34499.0,0.13668978]
[1610369277459,0.13632608,34500.0,34499.0,0.0003637]
[1610369277865,0.92048309,34520.0,34487.0,0.00036366]
[1610369278060,0.92048309,34520.0,34486.0,1.69241]
[1610369278061,0.92048309,34520.0,34499.0,0.00036366]
[1610369278264,0.92099846,34521.0,34499.0,0.00036366]
[1610369278460,0.92099846,34521.0,34499.0,0.10847]
[1610369278664,1.20904756,34522.0,34500.0,0.00036366]
[1610369278862,4.42542608,34505.0,34504.0,0.13632608]
[1610369279062,4.42542608,34505.0,34500.0,0.00036366]
[1610369279259,4.42542608,34505.0,34504.0,0.00036368]
[1610369279469,4.42542608,34505.0,34501.0,0.00036368]
[1610369279673,4.42542608,34505.0,34499.0,0.10847]
[1610369281859,0.13632608,34505.0,34499.0,0.10847]
[1610369282058,0.13632608,34505.0,34500.0,0.0862]
[1610369282759,0.13632608,34514.0,34504.0,0.13632608]
[1610369282960,0.92271785,34522.0,34504.0,0.13455785]
[1610369283159,0.92329497,34524.0,34504.0,0.13455785]
[1610369283361,0.92329497,34524.0,34505.0,0.0003637]
[1610369283563,0.92329497,34524.0,34505.0,1.5003637]
[1610369283763,1.81345616,34539.0,34505.0,1.5003637]
[1610369283764,0.92471576,34528.0,34505.0,1.5003637]
[1610369283963,0.92471576,34528.0,34506.0,0.00036361]
[1610369284163,0.92627752,34533.0,34506.0,0.11151361]
[1610369284363,0.92802105,34540.0,34507.0,1.5]
[1610369284763,0.92980445,34545.0,34508.0,0.00036354]
[1610369285166,0.93014925,34546.0,34508.0,0.00036354]
[1610369285564,0.93040458,34547.0,34508.0,0.00036354]
[1610369285765,0.93040458,34547.0,34536.0,0.13632608]
[1610369285965,0.92992461,34545.0,34536.0,0.13632608]
[1610369286365,0.92992461,34545.0,34507.0,1.5]
[1610369286564,1.16236425,34551.0,34506.0,0.11115]
[1610369286565,0.92985319,34544.0,34508.0,1.5]
[1610369286767,0.92883522,34541.0,34508.0,1.5]
[1610369286965,0.92847128,34540.0,34509.0,0.00036353]
[1610369287366,0.92924449,34539.0,34509.0,0.00036353]
[1610369287565,0.92924449,34539.0,34509.0,1.50036353]
[1610369287965,0.92924449,34539.0,34509.0,0.00036353]
[1610369288166,0.92924449,34539.0,34510.0,0.08726356]
[1610369288365,0.92924449,34539.0,34506.0,0.11115]
[1610369288366,0.92924449,34539.0,34508.0,0.00036356]
[1610369288565,0.9292289,34535.0,34511.0,0.00036356]
[1610369288965,0.9292289,34535.0,34506.0,0.11115]
[1610369288966,0.92859269,34532.0,34509.0,0.00036358]
[1610369289166,0.92859269,34532.0,34506.0,0.11115]
[1610369289367,0.92804038,34530.0,34507.0,1.5]
[1610369289767,0.13632608,34530.0,34518.0,0.13632608]
[1610369289967,0.13632608,34530.0,34518.0,0.22919608]
[1610369290167,0.13632608,34530.0,34519.0,1.5]
[1610369291367,0.93098463,34533.0,34519.0,1.5]
[1610369291567,4.5209,34535.0,34519.0,1.5]
[1610369291766,4.5209,34535.0,34534.0,0.13632608]
[1610369291967,4.4778,34535.0,34534.0,1.72087608]
[1610369292167,4.3314,34535.0,34534.0,0.22087608]
[1610369292567,4.0418,34535.0,34534.0,0.22087608]
[1610369292767,3.8139,34535.0,34534.0,0.22087608]
[1610369292970,3.5333,34535.0,34534.0,0.21910934]
[1610369293166,3.181,34535.0,34534.0,0.21910934]
[1610369293367,2.1393,34535.0,34534.0,1.71910934]
[1610369293567,1.7996,34535.0,34534.0,1.7194727]
[1610369293767,1.7625,34535.0,34534.0,1.7194727]
[1610369293967,1.39165,34535.0,34534.0,1.7194727]
[1610369294166,1.22295,34535.0,34534.0,1.7194727]
[1610369294370,0.92628,34535.0,34534.0,1.7194727]
[1610369294567,0.98888589,34566.0,34534.0,1.7194727]
[1610369294767,6.2071,34567.0,34534.0,1.71910934]
[1610369294967,6.1984,34567.0,34534.0,1.71910934]
[1610369295168,0.0878,34566.0,34534.0,1.71910934]
[1610369295572,0.0774,34566.0,34534.0,1.71910934]
[1610369295769,6.1035,34567.0,34565.0,0.13632608]
[1610369295969,5.7212,34567.0,34566.0,1.5]
[1610369296369,5.3178,34567.0,34566.0,1.5]
[1610369296571,5.2749,34567.0,34566.0,1.5]
[1610369296769,0.87791695,34587.0,34566.0,1.5]
[1610369296970,1.20261062,34597.0,34570.0,4.2367]
[1610369297169,1.20261062,34597.0,34571.0,1.5]
[1610369297370,1.20191979,34601.0,34571.0,1.5]
[1610369297570,1.20191979,34601.0,34570.0,4.2367]
[1610369297772,1.20075511,34602.0,34586.0,0.13632608]
[1610369297971,1.20075511,34602.0,34586.0,0.23034608]
[1610369298175,1.19952358,34599.0,34586.0,0.23034608]
[1610369298572,1.19854352,34600.0,34570.0,4.2367]
[1610369298772,1.19817468,34599.0,34570.0,4.2367]
[1610369298973,1.30018468,34599.0,34570.0,4.2367]
[1610369299173,1.19577874,34591.0,34570.0,4.2367]
[1610369299372,1.30062874,34591.0,34570.0,4.2367]
[1610369299573,1.19031923,34588.0,34570.0,4.2367]
[1610369299774,0.13632608,34580.0,34576.0,0.13632608]
[1610369299974,0.13632608,34580.0,34570.0,4.2367]
[1610369300177,1.19031923,34588.0,34570.0,4.2367]
[1610369300375,1.1899122,34590.0,34570.0,4.2367]
[1610369300581,0.10485,34591.0,34570.0,4.2367]
[1610369301375,0.10201,34599.0,34570.0,4.2367]
[1610369301776,0.10201,34599.0,34581.0,0.13632608]
[1610369303177,1.18869158,34604.0,34581.0,0.13632608]
[1610369303377,0.07174,34608.0,34581.0,0.13456193]
[1610369303577,1.19068833,34609.0,34581.0,0.13456193]
[1610369303776,1.191178,34610.0,34602.0,0.13632608]
[1610369304176,1.191178,34610.0,34591.0,0.08743]
[1610369304377,1.19337617,34614.0,34591.0,0.08743]